[Event "Romanian Superleague 2022"]
[Site "Oradea"]
[Date "2022.09.29"]
[Round "9.1"]
[White "Kozak, Adam"]
[Black "Tarlev, Konstantin"]
[Result "1/2-1/2"]
[ECO "D35"]
[WhiteElo "2516"]
[BlackElo "2576"]
[Annotator "TA"]
[PlyCount "89"]
[EventDate "2022.09.21"]
[EventType "team-tourn"]
[EventCountry "ROU"]
[SourceTitle "playchess.com"]
[Source "ChessBase"]
[SourceQuality "1"]
[TimeControl "40/5400+30:1800+30"]

{[%evp 12,89,23,14,13,0,0,-27,-2,-13,0,0,42,31,45,24,22,0,35,41,92,82,121,108,116,102,111,117,108,127,114,87,66,74,59,56,149,120,254,247,239,227,247,247,191,159,227,237,226,203,168,135,195,183,253,246,381,364,319,318,301,118,290,0,0,0,0,0,0,0,0,0,0,0,0,0,0,0,0,0]} 1. d4 {[%emt 0:00:02]} Nf6 {[%emt 0:03:04]} 2. c4 {[%emt 0:00:11]} e6 {[%emt 0:00:07]} 3. Nc3 {[%emt 0:00:07]} d5 {[%emt 0:01:49]} 4. cxd5 {[%emt 0:00:09]} Nxd5 {[%emt 0:00:06]} 5. e4 {[%emt 0:00:06]} Nxc3 {[%emt 0:00:04]} 6. bxc3 {[%emt 0:00:05]} c5 {[%emt 0:00:03]} 7. Rb1 {[%emt 0:00:06]} Be7 $1 {[%emt 0:00:48] 7...Be7 is better than 7...cxd4. D35: Queen's Gambit Declined: Exchange Variation.} 8. Nf3 {[%emt 0:00:17]} O-O {[%emt 0:00:15]} 9. h4 {[%emt 0:00:55]} cxd4 {[%emt 0:01:52] Black has an edge.} 10. cxd4 {[%emt 0:00:06]} (10. Qxd4 Qa5 $15) 10... Nc6 {[%emt 0:00:03]} 11. Bb5 {[%emt 0:11:42] [#]} Qc7 $146 {[%emt 0:18:50]} (11... a6 $5 {[%cal Ra6b5]} 12. Bxc6 bxc6 $11) ({Predecessor:} 11... a6 12. Bxc6 bxc6 13. h5 h6 14. Ne5 Bd6 15. O-O c5 16. Rb3 cxd4 17. Qxd4 Qc7 {½-½ (30) Yu,Y (2765)-Radjabov,T (2751) Batumi 2018}) 12. O-O {[%emt 0:10:37]} a6 {[%emt 0:00:23]} 13. Bd3 {[%emt 0:06:53]} (13. Bxc6 $5 Qxc6 14. Re1 $11) 13... Nb4 {[%emt 0:03:35]} 14. Bg5 {[%emt 0:01:01]} Bxg5 {[%emt 0:11:16]} (14... f6 $5 {[%cal Rf6g5]} 15. Be3 Bd7 $11) 15. hxg5 {[%emt 0:02:34]} Qe7 {[%emt 0:00:25]} (15... Nxd3 $14 16. Qxd3 Bd7) 16. Be2 $16 {[%emt 0:03:41]} Rd8 {[%emt 0:02:10]} 17. Qb3 {[%emt 0:06:26]} Nc6 {[%emt 0:00:23]} 18. Qc3 {[%emt 0:09:10]} Rd6 {[%emt 0:00:58]} 19. Rfd1 {[%emt 0:05:19]} Qd8 {[%emt 0:03:39]} 20. a4 {[%emt 0:09:42]} a5 {[%emt 0:26:43]} 21. Bb5 {[%emt 0:08:30] White has more active pieces.} Bd7 {[%emt 0:01:49]} 22. Qc5 {[%emt 0:11:44]} Be8 {[%emt 0:01:52]} 23. d5 {[%emt 0:00:34][%cal Oc5d6] And now Qxd6! would win.} exd5 {[%emt 0:08:50]} ({Black should try} 23... b6 $1 $14 24. Qc1 (24. Qc4 Nb4 $15) 24... Ne7) 24. exd5 {[%emt 0:02:27] aiming for Re1.} Nb4 {[%emt 0:03:02]} (24... b6 $16 25. Qxd6 (25. Qc4 Nb4 $11) 25... Qxd6 26. dxc6 Qc7) 25. Bxe8 $18 {[%emt 0:00:57]} b6 {[%emt 0:00:02] [#]} 26. Bxf7+ $1 {[%emt 0:00:23]} Kxf7 {[%emt 0:00:03]} 27. Qc4 {[%emt 0:01:20]} Kg8 {[%emt 0:01:51]} 28. Rd4 {[%emt 0:03:05]} Qc8 {[%emt 0:02:56]} (28... Qd7 $16 {is a better defense.} 29. g6 Rc8) 29. Qb3 {[%emt 0:01:48]} Qf5 {[%emt 0:01:24]} 30. Rc1 {[%emt 0:02:15]} Rad8 {[%emt 0:01:33]} 31. Qc4 {[%emt 0:03:14]} Rxd5 {[%emt 0:01:33]} (31... Re8 $16 32. Qb3 Kh8) 32. Re1 {[%emt 0:00:30] Re5 is the strong threat.} Qc8 {[%emt 0:04:18]} (32... Qf7 $142 33. Rxd5 Nxd5) 33. Qb3 {[%emt 0:00:27]} Kh8 {[%emt 0:00:37] [#]} (33... Qc5 $142 34. Red1 g6) 34. Ne5 $1 {[%emt 0:00:35] Strongly threatening Nf7+.} Qf5 {[%emt 0:00:28][%cal Od8f8] Against Nf7+} 35. Rde4 {[%emt 0:00:30]} Kg8 {[%emt 0:00:30] [#]} 36. Qc4 $2 {[%emt 0:00:30]} (36. Nf3 $1 $18 {is the precise move to win.}) 36... Qxg5 $2 {[%emt 0:00:31] [#]} (36... Rc8 $16 {might work better.} 37. Qb3 Rcd8) 37. Nc6 $2 {[%emt 0:00:30]} (37. Nd7 $1 $18 {[%mdl 512]}) 37... Nxc6 $1 $11 {[%emt 0:00:23] The position is equal.} 38. Qxc6 {[%emt 0:00:28] White threatens Re8+ and mate.} ({But not} 38. Re8+ $2 Rxe8 39. Rxe8+ Kf7 $19) 38... h5 {[%emt 0:00:07]} 39. Qxb6 {[%emt 0:00:26]} Kh7 {[%emt 0:00:13]} 40. R4e3 {[%emt 0:00:00]} R8d6 {[%emt 0:00:00]} 41. Qb8 {[%emt 0:05:54]} Rd1 {[%emt 0:04:20]} ({Don't do} 41... Rg6 42. g3 Qd8 43. Qxd8 Rxd8 44. Re5 $14) 42. Qb3 {[%emt 0:02:15]} Rxe1+ {[%emt 0:01:51]} 43. Rxe1 {[%emt 0:00:02]} Rd5 {[%emt 0:04:51]} 44. Qc4 {[%emt 0:03:09]} Rc5 {[%emt 0:00:41]} 45. Qd4 {[%emt 0:00:35] White really could win this.  Weighted Error Value: White=0.25 (precise) /Black=0.27 (precise)} 1/2-1/2

[Event "Romanian Superleague 2022"]
[Site "Oradea"]
[Date "2022.09.29"]
[Round "9.2"]
[White "Ionescu, Constantin"]
[Black "Petkov, Momchil"]
[Result "1/2-1/2"]
[ECO "D45"]
[WhiteElo "2415"]
[BlackElo "2511"]
[Annotator "TA"]
[PlyCount "38"]
[EventDate "2022.09.21"]
[EventType "team-tourn"]
[EventCountry "ROU"]
[SourceTitle "playchess.com"]
[Source "ChessBase"]
[SourceQuality "1"]
[TimeControl "40/5400+30:1800+30"]

{[%evp 16,38,0,-5,0,0,0,0,0,0,0,0,0,-2,3,4,9,8,0,-16,-12,-14,0,0,0]} 1. d4 {[%emt 0:00:02]} Nf6 {[%emt 0:00:19]} 2. c4 {[%emt 0:00:08]} e6 {[%emt 0:00:08]} 3. Nf3 {[%emt 0:00:08]} d5 {[%emt 0:00:11]} 4. Nc3 {[%emt 0:00:09]} c6 {[%emt 0:00:13]} 5. e3 {[%emt 0:00:43]} Nbd7 {[%emt 0:00:15]} 6. Qc2 {[%emt 0:00:18]} Bd6 {[%emt 0:00:18]} 7. Bd2 {[%emt 0:02:47]} O-O {[%emt 0:02:33]} 8. Be2 {[%emt 0:02:45]} Re8 {[%emt 0:16:13]} 9. O-O {[%emt 0:02:07] The position is equal.} h6 {[%emt 0:05:41] [#] D45: Semi-Slav: 5 e3.} 10. e4 $146 {[%emt 0:08:10]} ({Predecessor:} 10. h3 b6 11. e4 Nxe4 12. Nxe4 dxe4 13. Qxe4 Bb7 14. Bf4 c5 15. Qxb7 Bxf4 16. g3 {½-½ (16) Jones,B (2269)-Macurek,M (2309) ICCF email 2019}) 10... dxe4 {[%emt 0:03:52]} 11. Nxe4 {[%emt 0:00:10]} Nxe4 {[%emt 0:00:04]} 12. Qxe4 {[%emt 0:00:09]} e5 {[%emt 0:01:30]} 13. dxe5 {[%emt 0:00:53]} ({Don't go for} 13. Bd3 $2 Nf6 14. Qe3 e4 $19) 13... Nxe5 {[%emt 0:02:02][%cal Bd7e5,Be5g6,Bg6f4][%mdl 32]} 14. Bc3 {[%emt 0:00:29][%cal Rf3e5]} Ng6 {[%emt 0:12:55] [#]} 15. Qd4 {[%emt 0:02:28][%csl Gc3][%cal Rd4g7]} Bf8 $132 {[%emt 0:00:28][%mdl 2048] Hoping for ...Qxd4. Black is not keeping still} 16. Qxd8 {[%emt 0:04:37]} Rxd8 {[%emt 0:00:05]} 17. Rfe1 {[%emt 0:00:07]} Nf4 {[%emt 0:06:08]} 18. Bf1 {[%emt 0:00:09]} Be6 {[%emt 0:06:21]} 19. Nd4 {[%emt 0:10:06]} Bd7 {[%emt 0:09:06] A balanced but interesting game.  Weighted Error Value: White=0.01 (flawless) /Black=0.03 (flawless)} 1/2-1/2

[Event "Romanian Superleague 2022"]
[Site "Oradea"]
[Date "2022.09.29"]
[Round "9.3"]
[White "Bonte, Andrei-Mihai"]
[Black "Soltanici, Ruslan"]
[Result "1-0"]
[ECO "D40"]
[WhiteElo "2339"]
[BlackElo "2333"]
[Annotator "TA"]
[PlyCount "75"]
[EventDate "2022.09.21"]
[EventType "team-tourn"]
[EventCountry "ROU"]
[SourceTitle "playchess.com"]
[Source "ChessBase"]
[SourceQuality "1"]
[TimeControl "40/5400+30:1800+30"]

{[%evp 22,75,13,0,45,49,37,44,37,28,66,0,93,106,110,110,115,113,149,116,136,89,97,97,91,92,97,92,83,83,83,82,98,98,129,131,131,120,130,118,154,116,133,0,0,0,0,0,0,-61,0,0,0,0,5169,1951]} 1. d4 {[%emt 0:00:28]} d5 {[%emt 0:00:13]} 2. c4 {[%emt 0:03:04]} e6 {[%emt 0:00:22]} 3. Nf3 {[%emt 0:03:15]} Nf6 {[%emt 0:00:12]} 4. Nc3 {[%emt 0:00:15]} c5 {[%emt 0:00:25]} 5. e3 {[%emt 0:04:57]} Nc6 {[%emt 0:01:28]} 6. dxc5 {[%emt 0:01:42]} Bxc5 {[%emt 0:00:10]} 7. a3 {[%emt 0:00:05]} a6 {[%emt 0:04:02]} 8. b4 {[%emt 0:05:07]} Bd6 {[%emt 0:01:36]} 9. Bb2 {[%emt 0:01:38]} O-O {[%emt 0:00:15]} 10. Qc2 {[%emt 0:04:40]} dxc4 {[%emt 0:07:23]} 11. Bxc4 {[%emt 0:20:56]} Qe7 {[%emt 0:03:03]} 12. O-O {[%emt 0:03:57]} Bd7 {[%emt 0:06:36] D40: Queen's Gambit Declined: Semi-Tarrasch with 5 e3.} (12... b5 $5 {[%cal Rb5c4]} 13. Bd3 Bb7 $11) 13. Ne4 {[%emt 0:04:27]} Nxe4 {[%emt 0:02:18]} 14. Qxe4 {[%emt 0:00:05] [#]} Rad8 $146 {[%emt 0:04:05] White is slightly better.} ({Predecessor:} 14... Rfd8 15. Qg4 g6 16. Rfd1 Be8 17. h4 Bc7 18. h5 Rxd1+ 19. Rxd1 Rd8 20. Rf1 Bd7 21. hxg6 hxg6 {1-0 (37) Dunnington,A (2450)-Bjarnason,S (2285) Hafnarfjordur 1996}) 15. Rfd1 {[%emt 0:06:09]} Bc8 {[%emt 0:07:44]} 16. Rd2 {[%emt 0:09:40]} (16. h3 $14) 16... f5 {[%emt 0:10:58]} (16... Bxh2+ $1 $11 {keeps the balance.} 17. Kxh2 Rxd2 18. Nxd2 Qd6+ 19. Qf4 Qxd2 20. Bxg7 Kxg7 21. Qg5+ Kh8 22. Qf6+ Kg8 23. Qg5+ Kh8 24. Qf6+ Kg8 25. Qg5+ Kh8) 17. Qc2 $16 {[%emt 0:03:39]} Kh8 {[%emt 0:00:38]} 18. Rad1 {[%emt 0:01:31]} e5 {[%emt 0:01:45] [#]} 19. Ng5 $1 {[%emt 0:08:17][%mdl 512]} Bc7 {[%emt 0:02:12]} (19... Qxg5 20. Rxd6) 20. Rxd8 {[%emt 0:05:53]} Nxd8 {[%emt 0:00:59] [#]} 21. Rxd8 $1 {[%emt 0:02:01][%mdl 512] White has more active pieces.} Bxd8 {[%emt 0:14:29] [#]} (21... Qxd8 22. Nf7+) 22. Nf7+ {[%emt 0:00:24]} Rxf7 {[%emt 0:00:06]} 23. Bxf7 {[%emt 0:00:05]} Qc7 {[%emt 0:01:26]} 24. Qd1 {[%emt 0:02:08][%cal Ob2e5] Black must now prevent Bxe5!} Bf6 {[%emt 0:02:13]} 25. Bb3 {[%emt 0:00:13]} Qd7 {[%emt 0:03:42]} 26. Qc2 {[%emt 0:01:26]} Qd8 {[%emt 0:10:12]} 27. Qc4 {[%emt 0:01:47]} Bd7 {[%emt 0:00:45]} 28. Qd5 {[%emt 0:04:13][%csl LRb7,LRe5]} Qc8 {[%emt 0:01:02]} 29. h4 {[%emt 0:00:22]} Bc6 {[%emt 0:01:32] [#]} 30. Qd6 {[%emt 0:00:39]} Bxh4 {[%emt 0:08:43]} 31. Bxe5 {[%emt 0:00:57]} Qd8 {[%emt 0:00:07]} 32. Qe6 $40 {[%emt 0:00:34][%mdl 128] White has some attack.} ({White should try} 32. Qd4 $16 Qxd4 33. exd4 (33. Bxd4 Bg5 $14)) 32... Bxf2+ $1 $11 {[%emt 0:01:55]} 33. Kxf2 {[%emt 0:00:42]} Qd2+ {[%emt 0:00:06]} 34. Kf1 {[%emt 0:00:40][%csl Gb3][%cal Re6g8]} Bb5+ {[%emt 0:01:18]} 35. Bc4 {[%emt 0:01:18]} (35. Kg1 $11 Qe1+ 36. Kh2 Qh4+ 37. Kg1 Qe1+ 38. Kh2 Qh4+ 39. Kg1 Qe1+) 35... Qd1+ {[%emt 0:03:17]} ({Black should play} 35... Qc1+ $15 36. Kf2 Qxc4) 36. Kf2 {[%emt 0:00:01][%csl Gc4][%cal Re6g8]} Qd2+ {[%emt 0:00:27]} 37. Kg3 {[%emt 0:00:38][%csl Gc4][%cal Re6g8]} ({Don't blunder} 37. Kf3 $2 Bc6+ 38. Kf4 Qf2+ 39. Kg5 Qxg2+ 40. Kxf5 {[#]} Bd7 $1 {[%mdl 512]} 41. Qxd7 Qh3+ 42. Kf4 Qxd7 $19) 37... Qxe3+ $2 {[%emt 0:00:23][%mdl 8192]} (37... Bxc4 $11 38. Qxc4 Qxe3+ 39. Kh4 Qh6+ 40. Kg3 Qe3+ 41. Kh4 Qh6+ 42. Kg3 Qe3+) 38. Kh2 {[%emt 0:00:09] Weighted Error Value: White=0.21 (precise) /Black=0.19 (very precise)} 1-0

[Event "Romanian Superleague 2022"]
[Site "Oradea"]
[Date "2022.09.29"]
[Round "9.4"]
[White "Cosma, Ioan"]
[Black "Ognean, Mihnea-Ionut"]
[Result "1/2-1/2"]
[ECO "E04"]
[WhiteElo "2367"]
[BlackElo "2303"]
[Annotator "TA"]
[PlyCount "41"]
[EventDate "2022.09.21"]
[EventType "team-tourn"]
[EventCountry "ROU"]
[SourceTitle "playchess.com"]
[Source "ChessBase"]
[SourceQuality "1"]
[TimeControl "40/5400+30:1800+30"]

{[%evp 17,41,0,7,0,0,0,0,0,0,0,0,-20,-14,-14,-1,-2,-17,-18,8,2,27,0,13,15,8,0]} 1. Nf3 {[%emt 0:00:04]} d5 {[%emt 0:00:25]} 2. g3 {[%emt 0:00:09]} Nf6 {[%emt 0:00:21]} 3. Bg2 {[%emt 0:00:18]} c5 {[%emt 0:00:28]} 4. O-O {[%emt 0:00:10]} Nc6 {[%emt 0:00:07]} 5. d4 {[%emt 0:00:13]} e6 {[%emt 0:00:07]} 6. c4 {[%emt 0:00:16]} dxc4 {[%emt 0:00:06]} 7. Ne5 {[%emt 0:00:12]} Bd7 {[%emt 0:00:14]} 8. Na3 {[%emt 0:00:13]} cxd4 {[%emt 0:00:25]} 9. Naxc4 {[%emt 0:00:12]} Be7 $1 {[%emt 0:00:06][%mdl 4] is currently scoring better than 9...Bc5.} 10. Qb3 {[%emt 0:05:18] E04: Open Catalan: 5 Nf3.} Qc7 {[%emt 0:00:05]} 11. Nxc6 {[%emt 0:06:13]} Bxc6 {[%emt 0:00:08]} ({Don't do} 11... bxc6 12. Bf4 Qd8 13. Rfd1 $16) 12. Bf4 {[%emt 0:00:08]} Qd8 {[%emt 0:00:04]} 13. Bxc6+ {[%emt 0:04:17]} bxc6 {[%emt 0:00:04]} 14. Qa4 {[%emt 0:00:20]} O-O {[%emt 0:01:04]} 15. Qxc6 {[%emt 0:04:02]} Rc8 {[%emt 0:03:25] [#]} 16. Qa6 $146 {[%emt 0:01:38]} ({Predecessor:} 16. Qa4 Nd5 {½-½ (16) Shirov,A (2679)-Landa,K (2601) Czech Republic 2017}) 16... Nd5 {[%emt 0:29:48][%cal Od4d3] Black wants to play ...d3!} 17. Bd2 {[%emt 0:01:33]} Bb4 {[%emt 0:10:09][%cal Oc8c4]} 18. Rfd1 {[%emt 0:02:25]} Qe7 {[%emt 0:01:41]} 19. Ne5 {[%emt 0:11:50]} Qd6 {[%emt 0:02:09] Inhibits Nc6.} 20. Qxd6 {[%emt 0:01:59]} Bxd6 {[%emt 0:00:04]} 21. Nf3 {[%emt 0:06:16] A balanced but interesting game.  Weighted Error Value: White=0.06 (flawless) /Black=0.07 (flawless)} 1/2-1/2

[Event "Romanian Superleague 2022"]
[Site "Oradea"]
[Date "2022.09.29"]
[Round "9.5"]
[White "Ileana, George"]
[Black "Itkis, Boris"]
[Result "0-1"]
[ECO "C41"]
[WhiteElo "2301"]
[BlackElo "2332"]
[Annotator "TA"]
[PlyCount "116"]
[EventDate "2022.09.21"]
[EventType "team-tourn"]
[EventCountry "ROU"]
[SourceTitle "playchess.com"]
[Source "ChessBase"]
[SourceQuality "1"]
[TimeControl "40/5400+30:1800+30"]

{[%evp 9,116,14,15,-1,54,47,33,38,51,37,49,42,72,16,20,-63,-52,-81,-69,-66,-68,-66,-93,-77,-74,-69,-34,-87,-101,-91,-87,-95,-89,-93,-39,-37,-43,-23,-23,-16,0,0,4,18,15,0,0,0,0,0,0,-27,-21,-35,-35,-34,0,-18,-18,-18,-18,-102,-102,-111,-124,-400,-350,-335,-403,-391,-361,-682,-558,-2652,-1859,-2141,-1385,-29975,-29976,-29976,-29977,-29977,-29978,-29978,-29979,-29979,-29980,-29980,-29981,-29981,-29982,-29982,-29983,-29983,-29984,-29984,-29985,-29985,-29986,-29986,-29987,-29987,-6115,-29986,-29987,-29993,-29994,-29994,-29993]} 1. e4 {[%emt 0:00:06]} d6 {[%emt 0:00:12]} 2. d4 {[%emt 0:00:06]} Nf6 {[%emt 0:00:05]} 3. Nc3 {[%emt 0:00:04]} e5 {[%emt 0:00:20]} 4. Nf3 {[%emt 0:00:06]} Nbd7 {[%emt 0:00:05]} 5. Rg1 {[%emt 0:00:27]} c6 {[%emt 0:00:20]} 6. g4 {[%emt 0:00:07][%cal Bg2g4,Bg4g5][%mdl 32] C41: Philidor Defence.} g6 {[%emt 0:00:04]} (6... Qa5 $11) 7. g5 {[%emt 0:00:24]} Nh5 {[%emt 0:00:06]} 8. Be3 {[%emt 0:00:06] White is slightly better.} Be7 {[%emt 0:01:59]} 9. Qd2 {[%emt 0:00:11]} O-O {[%emt 0:00:23]} 10. O-O-O {[%emt 0:00:15]} Qc7 {[%emt 0:05:38]} 11. Be2 {[%emt 0:00:44]} (11. d5 $1 $16) 11... b5 $11 {[%emt 0:01:50][%cal Bb7b5,Bb5b4][%mdl 32]} 12. Nh4 {[%emt 0:00:44]} (12. Kb1 $11) 12... Ng7 $1 $15 {[%emt 0:03:25]} 13. f4 {[%emt 0:00:18] [#]} b4 $146 {[%emt 0:05:16] ...exf4 is the strong threat.} ({Predecessor:} 13... exf4 14. Bxf4 Nb6 15. Bd3 Nc4 16. Bxc4 bxc4 17. Kb1 Rb8 18. Ka1 Bd7 19. e5 Qb7 20. Rb1 d5 21. e6 Bxe6 22. Bxb8 Qxb8 23. Nf3 Bd6 24. h4 Bf5 25. Rge1 {½-½ (25) Cerovic,D (2328)-Abramovic,B (2469) Belgrade 2013}) 14. Nb1 $1 {[%emt 0:00:07]} exf4 {[%emt 0:01:56]} 15. Bxf4 {[%emt 0:00:09]} a5 {[%emt 0:03:39]} 16. c4 {[%emt 0:03:34][%cal Oc4c5]} c5 {[%emt 0:09:40] Threatens to win with ...cxd4.} 17. d5 {[%emt 0:00:41]} f6 {[%emt 0:00:19]} 18. Rdf1 {[%emt 0:00:53]} ({White should try} 18. gxf6 $15 Bxf6 19. Nf3) 18... fxg5 $17 {[%emt 1:04:13]} 19. Bxg5 {[%emt 1:30:58]} Rxf1+ {[%emt 0:00:00]} 20. Rxf1 {[%emt 0:00:00]} Ne5 {[%emt 0:00:00]} 21. Nf3 {[%emt 0:00:00]} Bh3 {[%emt 0:00:00]} (21... Nf7 $1 $17) 22. Rg1 $15 {[%emt 0:00:00]} Nxf3 {[%emt 0:00:00]} 23. Bxf3 {[%emt 0:00:00]} Rf8 {[%emt 0:00:00]} 24. Rg3 {[%emt 0:00:00]} Bxg5 {[%emt 0:00:00]} 25. Qxg5 {[%emt 0:00:00]} Bc8 {[%emt 0:00:00]} 26. Nd2 {[%emt 0:00:00]} Re8 {[%emt 0:00:00]} 27. h4 {[%emt 0:00:00] And now h5 would win.} Re5 {[%emt 0:00:00]} 28. Qf6 {[%emt 0:00:00]} Ne8 {[%emt 0:00:00]} 29. Qf4 {[%emt 0:00:00]} Qf7 $36 {[%emt 0:00:00][%mdl 2048] Black fights for an advantage.} 30. Qxf7+ {[%emt 0:00:00]} Kxf7 {[%emt 0:00:00]} 31. Kc2 {[%emt 0:00:00]} Nf6 {[%emt 0:00:00]} 32. Kd3 {[%emt 0:00:00]} h6 {[%emt 0:00:00]} 33. Ke3 {[%emt 0:00:00]} g5 {[%emt 0:00:00]} 34. hxg5 {[%emt 0:00:00]} hxg5 {[%emt 0:00:00]} 35. Nb3 {[%emt 0:00:00]} (35. Bd1 $11 {remains equal.}) 35... g4 $17 {[%emt 0:00:00]} 36. Bh1 {[%emt 0:00:00]} a4 {[%emt 0:00:00] Black is more active.} 37. Nc1 {[%emt 0:09:00][%mdl 8192] [#] This move loses the game for White.} (37. Nd2 $17 {keeps fighting.}) 37... Nxe4 $1 $19 {[%emt 0:00:00][%mdl 512]} 38. Bxe4 {[%emt 0:00:00] aiming for Nd3.} (38. Rg1 Bf5) 38... Bf5 {[%emt 0:00:00]} 39. Kf4 {[%emt 0:00:00]} Bxe4 {[%emt 0:00:00][%mdl 4096] Endgame KRB-KRN} 40. Re3 $2 {[%emt 0:00:00]} (40. Kxg4 Bb1 41. Rg1) 40... Bf3 {[%emt 0:00:00]} ({Worse is} 40... a3 41. bxa3 Bc2 42. axb4 (42. Rxe5 dxe5+ 43. Kxg4 bxa3 $11) 42... Rxe3 43. Kxe3 cxb4 44. Kf4 $11) 41. Rxe5 {[%emt 0:00:00]} dxe5+ {[%emt 0:00:00] KB-KN} 42. Ke3 {[%emt 0:00:00]} e4 $1 {[%emt 0:00:00] ( -> ...g3)} 43. Ne2 {[%emt 0:00:00]} Bxe2 {[%emt 0:00:00]} 44. Kxe2 {[%emt 0:00:00] [#] KP-KP} g3 $1 {[%emt 0:00:00]} 45. Ke3 {[%emt 0:00:00]} Kf6 {[%emt 0:00:00]} 46. Ke2 {[%emt 0:00:00]} b3 {[%emt 0:00:00]} 47. axb3 {[%emt 0:00:00]} axb3 {[%emt 0:00:00]} 48. Ke3 {[%emt 0:00:00]} Ke5 {[%emt 0:00:00]} 49. Ke2 {[%emt 0:00:00]} Kf5 {[%emt 0:00:00]} 50. Ke3 {[%emt 0:00:00]} Kg4 {[%emt 0:00:00]} 51. d6 {[%emt 0:00:00]} g2 {[%emt 0:00:00]} 52. Kf2 {[%emt 0:00:00] [#]} Kh3 $1 {[%emt 0:00:00]} 53. d7 {[%emt 0:00:00]} e3+ {[%emt 0:00:01]} 54. Kf3 {[%emt 0:00:00]} g1=Q {[%emt 0:00:07]} 55. d8=Q {[%emt 0:00:00]} Qf2+ {[%emt 0:00:10]} 56. Ke4 {[%emt 0:00:00]} e2 {[%emt 0:00:15] Black mates.} 57. Kd3 {[%emt 0:00:00]} e1=R {[%emt 0:02:26][%csl Gf2][%cal Re1e3]} ({Weaker is} 57... e1=Q 58. Qh4+ Kg2 59. Qh2+ Kf1 60. Qh1+ Qg1 61. Qxg1+ Kxg1 $11) 58. Qd7+ {[%emt 0:00:00]} Kg2 {[%emt 0:47:01] Weighted Error Value: White=0.55/Black=0.13 (very precise)} 0-1